bitfinex/quotes_ETHUSD_20250626
["timestamp","ask_amount","ask_price","bid_price","bid_amount"]
[1750958188471,0.001,2426.6,2426.5,6.788]
[1750958188784,0.001,2426.6,2426.4,6.66802409]
[1750958188785,0.98492176,2426.6,2426.4,4.697]
[1750958189085,0.98381363,2426.5,2426.4,4.697]
[1750958189289,1.79511363,2426.5,2426.4,4.697]
[1750958190063,1.79511363,2426.5,2425.8,4.697]
[1750958190356,0.2056,2426.1,2425.9,1.42649]
[1750958192630,0.2056,2426.1,2425.8,6.468]
[1750958194550,0.2056,2426.1,2425.8,4.697]
[1750958194713,0.8021,2426.3,2425.9,4.697]
[1750958194921,0.7981,2426.1,2425.9,4.697]
[1750958195613,0.9842859,2426.0,2425.9,4.697]
[1750958195813,0.2056,2425.9,2425.6,4.697]
[1750958196019,0.2056,2425.7,2425.6,4.697]
[1750958196839,1.9499859,2425.7,2425.6,4.697]
[1750958197553,0.9657,2425.7,2425.6,4.697]
[1750958198937,0.2056,2425.7,2425.6,4.697]
[1750958199347,0.2056,2425.7,2425.6,5.1667]
[1750958199549,0.2056,2425.7,2425.6,4.697]
[1750958200221,0.9854,2425.7,2425.6,4.697]
[1750958201859,0.9854,2425.7,2425.5,4.697]
[1750958202040,0.7798,2425.7,2425.5,4.697]
[1750958203222,0.7689,2425.4,2425.2,4.697]
[1750958203455,0.2056,2425.2,2425.0,4.697]
[1750958203649,0.7689,2425.4,2425.0,4.697]
[1750958203829,0.7689,2425.4,2425.1,4.697]
[1750958204034,0.7937,2425.3,2425.1,4.697]
[1750958204453,1.77767515,2425.3,2425.1,4.697]
[1750958204658,0.7937,2425.3,2425.1,4.697]
[1750958207863,0.2056,2425.1,2424.9,4.697]
[1750958208068,0.7937,2425.3,2424.9,4.697]
[1750958208231,1.87307,2425.3,2424.9,4.697]
[1750958208431,11.87307,2425.3,2424.9,4.697]
[1750958208655,1.87307,2425.3,2424.9,4.697]
[1750958209754,0.811,2425.0,2424.8,0.002]
[1750958209984,1.2867,2424.9,2424.8,0.002]
[1750958210681,11.2867,2424.9,2424.8,0.002]
[1750958211481,16.73028139,2424.9,2424.8,0.002]
[1750958211778,17.71084692,2424.9,2424.8,0.002]
[1750958212381,16.73028139,2424.9,2424.8,0.002]
[1750958212949,23.53028139,2424.9,2424.8,0.002]
[1750958213774,24.50965851,2424.9,2424.8,0.002]
[1750958214150,23.53028139,2424.9,2424.8,0.002]
[1750958217158,53.53028139,2424.9,2424.8,0.002]
[1750958218287,54.50891832,2424.9,2424.8,0.002]
[1750958219483,5.49412155,2424.7,2424.6,0.002]
[1750958219796,46.47275848,2424.7,2424.6,0.002]
[1750958220193,12.34853693,2424.7,2424.6,0.002]
[1750958220400,18.59453693,2424.7,2424.6,0.002]
[1750958220695,17.6159,2424.7,2424.6,0.002]
[1750958220874,20.29933843,2424.7,2424.6,0.002]
[1750958222667,21.27865788,2424.7,2424.6,0.002]
[1750958222868,25.40287943,2424.7,2424.6,0.002]
[1750958223091,4.90361254,2424.0,2423.9,0.002]
[1750958223296,0.7556,2423.9,2423.1,0.7782]
[1750958223461,10.0,2423.7,2423.1,0.7782]
[1750958223673,0.2056,2423.4,2423.1,0.7782]
[1750958224389,10.0,2423.8,2423.2,1.784]
[1750958224588,0.2056,2423.5,2423.3,0.7945]
[1750958226201,0.2056,2423.5,2423.4,5.4915]
[1750958226374,10.0,2424.2,2423.5,0.7945]
[1750958226571,0.2056,2423.8,2423.6,4.697]
[1750958226776,6.804,2424.3,2423.7,0.7945]
[1750958227076,0.2056,2424.0,2423.7,5.4915]
[1750958227411,0.2056,2424.0,2423.8,0.54915]
[1750958229389,0.2056,2424.0,2423.7,7.2755]
[1750958231412,0.2056,2424.0,2423.8,4.697]
[1750958232809,0.97974454,2424.2,2423.9,5.5196]
[1750958232990,0.2056,2424.2,2423.9,5.5196]
[1750958233191,0.2056,2424.2,2424.0,4.697]
[1750958233392,0.2056,2424.2,2424.1,4.697]
[1750958234905,2.77573445,2424.2,2424.1,4.697]
[1750958235113,2.98367899,2424.2,2424.1,4.697]
[1750958235315,7.99034454,2424.2,2424.1,4.697]
[1750958235496,0.2056,2424.2,2424.1,4.697]
[1750958236028,7.0126,2424.4,2424.1,4.697]
[1750958236231,0.2056,2424.4,2424.2,5.5186]
[1750958236402,0.97974454,2424.9,2424.3,0.8216]
[1750958236604,0.97974454,2424.8,2424.5,0.8216]
[1750958236797,0.97974454,2425.1,2424.5,0.8216]
[1750958237015,0.97974454,2425.0,2424.5,0.8216]
[1750958237229,0.97974454,2424.9,2424.5,0.8216]
[1750958237433,0.5,2424.6,2424.5,0.8216]
[1750958237832,0.5,2424.6,2424.5,1.37346]
[1750958239134,1.47974454,2424.6,2424.5,1.37346]
[1750958239329,0.5,2424.6,2424.5,0.8216]
[1750958240212,1.47974454,2424.6,2424.5,0.8216]
[1750958240413,0.5,2424.6,2424.5,0.8216]
[1750958243639,0.5,2424.6,2424.5,2.6076]
[1750958244310,0.97974454,2425.3,2424.5,2.6076]
[1750958244507,0.97974454,2425.3,2424.7,0.756]
[1750958245335,1.75154454,2425.4,2424.7,0.756]
[1750958245642,0.97974454,2425.3,2424.7,0.756]
[1750958246423,0.2056,2425.0,2424.7,0.756]
[1750958249239,0.2056,2425.0,2424.8,4.697]
[1750958249962,0.97974454,2425.4,2424.9,0.8134]
[1750958250271,0.2056,2425.3,2425.1,0.8134]
[1750958250432,0.2056,2425.3,2425.2,4.697]
[1750958251566,0.001,2425.8,2425.2,4.697]
[1750958251745,0.2056,2425.5,2425.3,4.697]
[1750958254457,0.001,2425.8,2425.5,0.753]
[1750958254652,0.001,2425.8,2425.6,4.697]
[1750958255669,0.001,2425.8,2425.7,4.697]
[1750958263391,0.2066,2425.8,2425.7,4.697]
[1750958263898,0.001,2425.8,2425.7,5.4576]
[1750958267357,0.001,2425.8,2425.7,5.6632]
[1750958269160,0.7575,2426.6,2426.0,4.695]
[1750958269356,0.2056,2426.4,2426.1,5.1645]
[1750958272901,0.2056,2426.4,2426.2,4.695]
[1750958273999,0.2056,2426.4,2426.2,5.4487]
[1750958278874,0.2056,2426.4,2426.3,4.695]
[1750958280005,0.001,2426.6,2426.5,5.2963]
[1750958280235,0.001,2426.6,2426.5,25.7949627]
[1750958280507,3.26306871,2427.4,2426.5,25.7949627]
[1750958280508,2.45026871,2427.5,2427.1,0.8315]
[1750958280696,0.001,2427.5,2427.4,0.2056]
[1750958280896,0.001,2427.5,2427.4,3.49752475]
[1750958281275,0.001,2427.5,2427.4,5.27652475]
[1750958281479,0.001,2427.5,2427.4,0.2056]
[1750958281710,0.001,2427.5,2427.3,2.6105]
[1750958281910,0.001,2427.5,2427.3,2.8161]
[1750958282096,0.001,2427.5,2427.4,13.6208]
[1750958282301,0.001,2427.5,2427.4,17.94603417]
[1750958282519,0.001,2427.5,2427.4,17.19573149]
[1750958282718,0.001,2427.5,2427.4,21.86536566]
[1750958283187,0.001,2427.5,2427.4,17.19573149]
[1750958283386,0.001,2427.5,2427.4,25.76973149]
[1750958284616,0.001,2427.5,2427.4,26.31973149]
[1750958284780,0.001,2427.5,2427.4,30.43936566]
[1750958286089,10.98384851,2428.5,2427.4,30.43936566]
[1750958286090,0.001,2428.5,2428.0,0.7698]
[1750958286291,0.001,2428.5,2428.1,8.574]
[1750958288302,0.001,2428.5,2428.1,9.16045326]
[1750958290222,0.001,2428.5,2428.0,0.7698]
[1750958290527,0.001,2428.5,2428.2,1.778]
[1750958291225,0.001,2428.5,2428.2,5.89626115]
[1750958291392,0.001,2428.5,2428.3,0.8155]
[1750958291926,0.001,2428.5,2428.4,4.4894]
[1750958292501,0.001,2428.5,2428.1,4.4894]
[1750958292706,0.8095,2428.4,2428.1,4.4894]
[1750958292902,1.89055,2428.4,2428.1,4.4894]
[1750958293827,0.5,2428.2,2428.1,4.4894]
[1750958295430,0.5,2428.2,2427.0,4.4894]
[1750958295431,0.7975,2428.1,2427.0,4.4894]
[1750958295637,4.11852959,2428.1,2427.2,1.793]
[1750958295820,1.25935296,2428.0,2427.2,1.793]
[1750958296023,0.2056,2427.6,2427.2,1.793]
[1750958296699,0.7913,2427.5,2427.2,1.793]
[1750958296908,0.2056,2427.3,2427.2,1.793]
[1750958297634,0.2056,2427.3,2426.8,12.086]
[1750958297835,0.2056,2427.1,2426.8,13.39406]
[1750958298001,0.2056,2427.3,2426.8,17.51463797]
[1750958298209,0.9969,2427.5,2427.0,0.2056]
[1750958298423,0.2056,2427.5,2427.0,0.2056]
[1750958298825,0.2056,2427.5,2427.0,4.32589757]
[1750958299026,0.2056,2427.5,2427.1,0.43258976]
[1750958300102,0.2056,2427.5,2427.0,0.2056]
[1750958301347,0.8115,2427.8,2426.8,13.39406]
[1750958301545,0.2056,2427.3,2426.8,13.59966]
[1750958302059,0.7056,2427.3,2426.8,13.59966]
[1750958302402,0.5,2427.3,2427.0,0.2056]
[1750958302807,1.3274,2427.3,2426.8,13.39406]
[1750958303103,0.2056,2427.1,2426.8,12.086]
[1750958303300,0.2056,2427.1,2426.8,13.39406]
[1750958306015,0.2056,2427.1,2426.8,4.4894]
[1750958307244,4.11999847,2427.2,2426.9,4.4894]
[1750958307409,0.8122,2427.1,2426.9,4.4894]
[1750958308554,10.8113,2427.0,2426.9,4.4894]
[1750958308762,12.30445904,2427.0,2426.9,4.4894]
[1750958309059,1.0169,2426.9,2426.3,4.4894]
[1750958309258,0.8113,2426.9,2426.4,4.4894]
[1750958309408,0.2056,2427.0,2426.5,0.2056]
[1750958310536,0.7791,2426.9,2426.4,4.4894]
[1750958310739,0.2056,2426.6,2426.4,4.4894]
[1750958311453,0.2056,2426.6,2426.2,0.2056]
[1750958311454,0.2056,2426.6,2426.5,4.4894]
[1750958312854,0.8332,2427.3,2426.5,17.90077831]
[1750958313065,0.2056,2427.2,2426.7,0.7544]
[1750958313355,0.2056,2427.5,2427.0,0.2056]
[1750958313658,0.2056,2427.5,2427.1,4.4894]
[1750958313835,0.2056,2427.5,2427.1,6.2834]
[1750958314007,0.2056,2427.5,2427.1,6.9323]
[1750958315559,0.8332,2427.6,2427.1,6.2834]
[1750958315723,0.2056,2427.2,2427.1,6.2834]
[1750958319254,0.9812,2427.2,2427.1,6.2834]
[1750958319962,0.9812,2427.2,2427.1,4.4894]
[1750958320183,10.9812,2427.2,2427.1,4.4894]
[1750958320341,15.10117363,2427.2,2427.1,4.4894]
[1750958320779,12.90329252,2427.2,2427.1,4.4894]
[1750958320951,19.75029252,2427.2,2427.1,4.4894]
[1750958323171,19.75029252,2427.2,2426.6,4.4894]
[1750958323472,0.2056,2426.8,2426.6,4.4894]
[1750958323774,0.2056,2426.8,2426.7,4.4894]
[1750958327678,0.2056,2426.8,2426.7,5.11774]
[1750958327884,10.2056,2427.2,2426.7,5.91134]
[1750958328076,10.2056,2427.2,2426.7,6.11694]
[1750958329080,10.2056,2427.2,2426.8,4.4894]
[1750958329378,0.2056,2427.2,2426.9,0.611694]
[1750958331449,10.0,2427.4,2426.8,4.4894]
[1750958331680,0.2056,2427.1,2426.9,4.4894]
[1750958333179,0.2056,2427.0,2426.9,4.4894]
[1750958335780,6.829,2427.1,2426.9,4.4894]
[1750958335951,7.0346,2427.1,2426.9,4.4894]
[1750958339583,7.0346,2427.1,2426.9,4.93834]
[1750958339773,0.2056,2427.1,2426.9,5.69064]
[1750958340869,0.2056,2427.1,2427.0,4.4894]
[1750958343388,0.9971,2427.1,2427.0,4.4894]
[1750958345490,5.11736195,2427.1,2426.7,4.4894]
[1750958345658,0.7607,2426.9,2426.7,4.4894]
[1750958345860,0.7607,2426.9,2426.2,1.813]
[1750958345861,0.2056,2426.7,2426.3,4.4894]
[1750958346055,0.2056,2426.4,2426.3,4.4894]
[1750958349665,14.12150187,2426.3,2426.2,4.4894]
[1750958349862,18.7480462,2426.3,2426.2,4.4894]
[1750958350060,19.7279516,2426.3,2426.2,4.4894]
[1750958350290,23.84945347,2426.3,2426.2,4.4894]
[1750958350500,24.60365347,2426.3,2426.2,4.4894]
[1750958351160,24.60365347,2426.3,2425.9,0.002]
[1750958351161,0.7542,2426.1,2425.9,0.002]
[1750958351360,16.834,2426.0,2425.9,0.002]
[1750958351763,10.0,2426.0,2425.9,0.002]
[1750958352000,16.834,2426.0,2425.9,0.002]
[1750958353865,10.0,2426.0,2425.9,0.002]
[1750958354166,16.836,2426.0,2425.9,0.002]
[1750958357469,16.831,2426.0,2425.9,4.4914]
[1750958359120,0.7944,2426.3,2425.9,4.4914]
[1750958359286,6.831,2426.2,2425.9,4.94094]
[1750958359482,10.0,2426.1,2425.9,4.94094]
[1750958360974,6.828,2426.0,2425.9,4.4914]
[1750958361415,17.6249,2426.0,2425.9,4.4914]
[1750958361568,21.74691154,2426.0,2425.9,4.4914]
[1750958361773,22.72605027,2426.0,2425.9,4.4914]
[1750958362006,25.64362401,2426.0,2425.9,4.4914]
[1750958363390,21.52161247,2426.0,2425.9,4.4914]
[1750958363701,25.64362401,2426.0,2425.9,4.4914]
[1750958364131,21.52161247,2426.0,2425.9,4.4914]
[1750958365621,26.19362401,2426.0,2425.9,4.4914]
[1750958365824,57.17275837,2426.0,2425.9,0.002]
[1750958367289,44.93995138,2425.8,2425.7,0.002]
[1750958367494,66.87688479,2425.8,2425.7,0.002]
[1750958367895,0.7997,2425.1,2424.7,4.4894]
[1750958368096,6.825,2425.0,2424.8,4.4894]
[1750958368292,10.0,2425.5,2424.8,4.4894]
[1750958368522,10.2056,2425.3,2425.0,0.7505]
[1750958368704,6.836,2425.2,2425.0,5.2399]
[1750958368906,6.836,2425.2,2425.1,4.4894]
[1750958370112,0.2056,2425.3,2425.1,4.4894]
[1750958370311,6.837,2425.2,2425.1,4.4894]
[1750958374544,0.2056,2425.3,2425.1,4.4894]
[1750958374703,0.2056,2425.5,2425.3,0.7927]
[1750958374909,6.825,2425.7,2425.5,0.8325]
[1750958375810,7.0306,2425.7,2425.5,0.8325]
[1750958376223,0.2056,2425.7,2425.5,0.8325]
[1750958376438,7.0346,2425.7,2425.5,0.8325]
[1750958377961,0.2056,2425.7,2425.6,4.4894]
[1750958379226,11.89073152,2425.7,2425.6,4.4894]
[1750958381461,14.12286126,2425.5,2425.4,4.4894]
[1750958381626,16.43683278,2425.5,2425.4,4.4894]
[1750958382441,17.80193278,2425.5,2425.4,4.4894]
[1750958382642,20.06471119,2425.5,2425.4,4.4894]
[1750958382966,26.89371119,2425.5,2425.4,4.4894]
[1750958385165,14.87414129,2425.1,2425.0,4.4894]
[1750958385327,21.69814129,2425.1,2425.0,4.4894]
[1750958386030,17.5746,2425.1,2425.0,4.4894]
[1750958387161,10.7506,2425.1,2425.0,4.4894]
[1750958387361,16.822,2425.1,2425.0,4.4894]
[1750958388164,16.822,2425.1,2425.0,5.2779]
[1750958388165,10.0,2425.1,2425.0,5.2779]
[1750958388370,17.0276,2425.1,2425.0,5.2779]
[1750958388529,18.01174189,2425.1,2425.0,5.2779]
[1750958388934,11.18974189,2425.1,2425.0,4.4894]
[1750958389139,17.0266,2425.1,2425.0,4.4894]
[1750958389339,18.01074189,2425.1,2425.0,4.4894]
[1750958389872,23.93535737,2425.1,2425.0,4.4894]
[1750958390567,25.29535737,2425.1,2425.0,4.4894]
[1750958391251,15.48371134,2425.0,2424.9,0.002]
[1750958391431,16.46785323,2425.0,2424.9,0.002]
[1750958391631,30.39005228,2425.0,2424.9,0.002]
[1750958391865,34.40337652,2425.0,2424.9,0.002]
[1750958393364,34.71271,2425.0,2424.9,0.002]
[1750958393870,10.0,2424.7,2424.4,4.4894]
[1750958394040,6.826,2424.6,2424.4,4.4894]
[1750958395072,10.2056,2424.4,2424.1,4.4914]
[1750958395270,6.822,2424.3,2424.1,4.4914]
[1750958395589,6.82,2424.2,2424.1,4.4914]
[1750958396262,10.0,2424.7,2424.1,4.4914]
[1750958396464,1.41241442,2424.7,2424.1,4.4914]
[1750958396672,0.2056,2424.3,2424.1,4.4914]
[1750958396873,6.818,2424.2,2424.1,4.4914]
[1750958397268,6.817,2424.2,2424.1,4.4914]
[1750958398540,0.2056,2424.3,2424.1,4.4914]
[1750958398740,6.814,2424.2,2424.1,5.2965]
[1750958398970,6.814,2424.2,2424.1,6.00645]
[1750958400075,2.614,2425.0,2424.1,6.00645]
[1750958400276,0.2056,2424.6,2424.2,4.4894]
[1750958400462,0.2056,2424.6,2424.3,0.540695]
[1750958400646,0.2056,2424.6,2424.3,0.761]
[1750958400647,6.814,2424.5,2424.3,0.761]
[1750958401002,6.814,2424.5,2424.4,4.4894]
[1750958402558,0.2056,2424.6,2424.4,4.4894]
[1750958402744,6.814,2424.5,2424.4,4.4894]
[1750958403157,7.0206,2424.6,2424.4,4.4894]
[1750958403358,7.0206,2424.6,2424.4,5.01444]
[1750958404874,6.815,2424.6,2424.4,4.4894]
[1750958405246,6.815,2424.6,2424.1,0.002]
[1750958405247,0.7673,2424.4,2424.1,0.002]
[1750958405446,1.74744411,2424.4,2424.1,0.002]
[1750958405783,14.12507218,2424.2,2424.1,0.002]
[1750958405978,22.94780384,2424.2,2424.1,0.002]
[1750958406279,18.82273166,2424.2,2424.1,0.002]
[1750958407194,1.99973166,2424.2,2424.1,0.002]
[1750958407375,6.822,2424.2,2424.1,0.002]
[1750958407975,10.94707218,2424.2,2424.1,0.002]
[1750958408377,21.74727218,2424.2,2424.1,0.002]
[1750958408785,22.29727218,2424.2,2424.1,0.002]
[1750958409114,25.11989123,2424.2,2424.1,0.002]
[1750958409788,0.8027,2423.8,2423.2,0.002]
[1750958409958,10.0,2423.6,2423.2,0.002]
[1750958411065,6.823,2423.5,2423.2,0.002]
[1750958411268,6.822,2423.4,2423.2,0.002]
[1750958412408,10.0,2423.3,2423.2,0.002]
[1750958412598,14.12660421,2423.3,2423.2,0.002]
[1750958413068,15.49510421,2423.3,2423.2,0.002]
[1750958413256,16.47331016,2423.3,2423.2,0.002]
[1750958413454,16.47265614,2423.3,2423.2,0.002]
[1750958413673,19.30102548,2423.3,2423.2,0.002]
[1750958414599,41.3662,2423.1,2423.0,0.002]
[1750958414788,12.54935193,2423.1,2423.0,0.002]
[1750958414962,21.17435193,2423.1,2423.0,0.002]
[1750958415157,27.73222697,2423.1,2423.0,0.002]
[1750958415391,57.73222697,2423.1,2423.0,0.002]
[1750958415913,27.73222697,2423.1,2423.0,0.002]
[1750958416115,57.73222697,2423.1,2423.0,0.002]
[1750958418583,49.10722697,2423.1,2423.0,0.002]
[1750958418784,57.72922697,2423.1,2423.0,0.002]
[1750958419296,56.75167504,2423.1,2423.0,0.002]
[1750958419498,57.72556843,2423.1,2423.0,0.002]
[1750958419698,44.97662361,2423.1,2423.0,0.002]
[1750958419918,22.07273022,2423.1,2423.0,0.002]
[1750958420924,26.74967504,2423.1,2423.0,0.002]
[1750958421090,27.72347169,2423.1,2423.0,0.002]
[1750958421291,26.74967504,2423.1,2423.0,0.002]
[1750958421719,22.62273022,2423.1,2423.0,0.002]
[1750958423212,14.00273022,2423.1,2423.0,0.002]
[1750958423535,18.8226,2423.1,2423.0,0.002]
[1750958423696,0.2056,2423.1,2423.0,0.002]
[1750958423888,8.8226,2423.1,2423.0,0.002]
[1750958424799,9.3726,2423.1,2423.0,0.002]
[1750958425018,13.99954482,2423.1,2423.0,0.002]
[1750958425220,16.89481005,2423.1,2423.0,0.002]
[1750958426019,17.72111005,2423.1,2423.0,0.002]
[1750958427325,18.70067344,2423.1,2423.0,0.002]
[1750958427824,28.70067344,2423.1,2423.0,0.002]
[1750958429124,27.72611005,2423.1,2423.0,0.002]
[1750958430187,28.70155539,2423.1,2423.0,0.002]
[1750958430426,28.70168028,2423.1,2423.0,0.002]
[1750958431835,15.95273546,2423.1,2423.0,0.002]
[1750958432005,10.7056,2423.1,2423.0,0.002]
[1750958432341,19.3166,2423.1,2423.0,0.002]
[1750958432634,20.29332616,2423.1,2423.0,0.002]
[1750958433530,20.29416821,2423.1,2423.0,0.002]
[1750958433727,11.68316821,2423.1,2423.0,0.002]
[1750958433932,19.3186,2423.1,2423.0,0.752]
[1750958434300,17.5206,2423.1,2423.0,0.752]
[1750958434998,23.57940482,2423.1,2423.0,0.002]
[1750958435197,19.45246,2423.1,2423.0,0.002]
[1750958435421,20.4318128,2423.1,2423.0,0.002]
[1750958436345,19.3186,2423.1,2423.0,0.002]
[1750958436497,20.29863534,2423.1,2423.0,0.002]
[1750958437033,25.77158016,2423.1,2423.0,0.002]
[1750958438632,25.77158016,2423.1,2422.8,0.002]
[1750958438633,14.12728548,2422.9,2422.8,0.002]
[1750958438935,21.92232082,2422.9,2422.8,0.002]
[1750958439098,24.83664738,2422.9,2422.8,0.002]
[1750958440498,20.7093619,2422.9,2422.8,0.002]
[1750958445651,24.83664738,2422.9,2422.8,0.002]
[1750958445837,20.7093619,2422.9,2422.8,0.002]
[1750958446040,24.83664738,2422.9,2422.8,0.002]
[1750958446349,10.2056,2422.8,2422.7,0.002]
[1750958446551,1.18563534,2422.8,2422.7,0.002]
[1750958446858,13.68985114,2422.8,2422.7,0.002]
[1750958447020,18.36730697,2422.8,2422.7,0.002]
[1750958448453,14.23985114,2422.8,2422.7,0.002]
[1750958449171,18.36730697,2422.8,2422.7,0.002]
[1750958451022,19.17560697,2422.8,2422.7,0.002]
[1750958453537,10.0,2422.7,2422.0,0.002]
[1750958453783,0.2064,2422.1,2422.0,0.002]
[1750958453942,7.0144,2422.1,2422.0,0.002]
[1750958454281,7.0144,2422.1,2422.0,0.7787]
[1750958455685,7.0144,2422.1,2422.0,0.002]
[1750958455686,17.99443534,2422.1,2422.0,0.002]
[1750958457476,17.0144,2422.1,2422.0,0.002]
[1750958459149,7.0144,2422.1,2422.0,0.7612]
[1750958460488,7.0144,2422.1,2422.0,0.002]
[1750958460845,7.5144,2422.1,2422.0,0.002]
[1750958461161,7.0144,2422.1,2422.0,0.002]
[1750958462864,6.808,2422.2,2422.0,0.7838]
[1750958464981,6.808,2422.2,2422.0,0.002]
[1750958468296,6.808,2422.2,2422.1,0.7854]
[1750958468666,0.98344872,2422.5,2422.1,0.7854]
[1750958468962,0.2056,2422.6,2422.2,0.7854]
[1750958473080,0.2056,2422.6,2422.4,0.789]
[1750958480012,7.5816,2422.8,2422.5,4.7]
[1750958482485,8.56422334,2422.8,2422.5,4.7]
[1750958482686,1.26915396,2422.7,2422.5,4.7]
[1750958483608,0.2056,2422.5,2422.1,4.7]
[1750958483812,4.0387773,2422.7,2422.1,4.7]
[1750958484113,4.0387773,2422.7,2422.2,4.7]
[1750958484279,1.16203773,2422.6,2422.2,4.7]
[1750958486209,0.2064,2422.2,2422.0,0.002]
[1750958486418,6.806,2422.2,2422.0,0.002]
[1750958492915,0.2064,2422.1,2422.0,0.7793]
[1750958493196,0.2064,2422.3,2422.1,0.7773]
[1750958493539,0.8265,2422.9,2422.2,5.4773]
[1750958493540,0.2064,2422.5,2422.2,5.4773]
[1750958493715,0.98283282,2422.7,2422.3,0.7773]
[1750958493890,0.2056,2422.7,2422.3,0.7773]
[1750958494093,0.2056,2422.7,2422.4,0.56837]
[1750958494493,0.2056,2422.7,2422.5,0.7686]
[1750958495418,1.18843282,2422.7,2422.5,0.7686]
[1750958495617,0.2056,2422.7,2422.5,0.7686]
[1750958496307,1.18843282,2422.7,2422.5,0.7686]
[1750958496492,0.2056,2422.7,2422.5,0.7686]
[1750958496898,1.18843282,2422.7,2422.5,0.7686]
[1750958497105,0.2056,2422.7,2422.5,0.7686]
[1750958497734,0.2056,2422.7,2422.6,4.7]
[1750958499105,0.7056,2422.7,2422.6,4.7]
[1750958506476,27.07405842,2422.7,2422.3,4.7]
[1750958506628,27.07405842,2422.7,2422.1,4.7]
[1750958506629,0.8153,2422.5,2422.1,4.7]
[1750958506830,6.803,2422.4,2422.1,4.7]
[1750958509041,7.78772648,2422.4,2422.1,4.7]
[1750958509469,0.98472648,2422.4,2422.1,4.7]
[1750958509630,0.2064,2422.3,2422.2,1.2332]
[1750958509829,0.2064,2422.3,2422.2,0.763]
[1750958510163,0.2064,2422.3,2422.1,4.7]
[1750958510470,0.2064,2422.2,2422.1,4.7]
[1750958519956,0.2064,2422.2,2422.1,5.5277]
[1750958520973,0.98472648,2422.5,2422.1,6.08067]
[1750958521179,0.2064,2422.5,2422.1,6.08067]
[1750958521478,0.2064,2422.5,2422.2,4.7]
[1750958521790,0.98472648,2422.7,2422.3,0.7786]
[1750958521791,10.2056,2422.7,2422.3,0.7786]
[1750958521986,11.19032648,2422.7,2422.4,4.7]
[1750958522878,0.5,2422.5,2422.4,4.7]
[1750958526957,2.45103265,2422.5,2422.4,4.7]
[1750958527772,3.43575913,2422.5,2422.4,4.7]
[1750958528582,18.1137261,2422.5,2422.4,4.7]
[1750958529361,22.02475913,2422.5,2422.4,4.7]
[1750958531092,12.65375913,2422.5,2422.4,4.7]
[1750958531292,19.45675913,2422.5,2422.4,4.7]
[1750958532802,12.65375913,2422.5,2422.4,4.7]
[1750958533096,19.45675913,2422.5,2422.4,4.7]
[1750958535188,11.48472648,2422.5,2422.4,4.7]
[1750958535368,17.303,2422.5,2422.4,4.7]
[1750958535566,18.28772648,2422.5,2422.4,4.7]
[1750958536801,19.11852648,2422.5,2422.4,4.7]
[1750958541979,27.70498872,2422.5,2422.4,4.7]
[1750958542170,31.30104012,2422.5,2422.4,4.7]
[1750958542372,10.0,2422.4,2422.1,4.7]
[1750958542576,10.0,2422.4,2422.0,0.002]
[1750958542577,0.2064,2422.1,2422.0,0.002]
[1750958542801,7.99412648,2422.1,2422.0,0.002]
[1750958543002,10.14011399,2422.1,2422.0,0.002]
[1750958545111,7.0094,2422.1,2422.0,0.002]
[1750958550508,32.06093741,2422.1,2422.0,0.002]
[1750958550719,0.8017,2421.8,2421.7,0.002]
[1750958550907,26.19116224,2421.8,2421.7,0.002]
[1750958551227,30.32032236,2421.8,2421.7,0.002]
[1750958551429,33.94385972,2421.8,2421.7,0.002]
[1750958551928,21.22823736,2421.8,2421.7,0.002]
[1750958552233,25.90739748,2421.8,2421.7,0.002]
[1750958552433,21.77823736,2421.8,2421.7,0.002]
[1750958552606,20.42653736,2421.8,2421.7,0.002]
[1750958552805,4.12846729,2422.3,2421.7,0.002]
[1750958552806,0.7676,2422.3,2421.7,0.002]
[1750958553020,0.2064,2421.8,2421.7,0.002]
[1750958553330,7.0094,2421.8,2421.7,0.8266]
[1750958553896,0.98665645,2422.0,2421.7,0.8266]
[1750958554131,6.803,2421.8,2421.7,0.8266]
[1750958554507,0.98665645,2422.2,2421.7,0.8266]
[1750958554707,10.0,2422.8,2421.9,0.7624]
[1750958554708,6.803,2422.4,2421.9,0.7624]
[1750958554921,12.8533,2423.0,2421.9,0.7624]
[1750958554922,0.98665645,2422.5,2422.1,0.9688]
[1750958555100,0.98665645,2422.4,2422.2,0.7624]
[1750958555300,0.98665645,2422.6,2422.2,0.7624]
[1750958555512,0.98665645,2422.5,2422.2,0.7624]
[1750958555713,8.58646224,2422.3,2421.8,0.7624]
[1750958555895,18.59205645,2422.2,2421.8,0.7624]
[1750958556100,0.98665645,2422.1,2421.8,0.7624]
[1750958556316,0.98665645,2422.0,2421.8,0.7624]
[1750958556513,6.803,2421.9,2421.8,0.7624]
[1750958557114,6.803,2421.9,2421.5,0.8218]
[1750958557334,7.78965645,2421.9,2421.5,0.8218]
[1750958557537,6.803,2421.9,2421.5,0.8218]
[1750958557944,7.78965645,2421.9,2421.5,0.8218]
[1750958558242,6.803,2421.9,2421.5,0.8218]
[1750958558604,7.78965645,2421.9,2421.5,0.8218]
[1750958558902,6.803,2421.9,2421.5,0.8218]